bitfinex/quotes_BTCUSD_20250607
["timestamp","ask_amount","ask_price","bid_price","bid_amount"]
[1749295414186,0.03648572,105370.0,105360.0,2.42858159]
[1749295417278,0.03648572,105370.0,105360.0,2.33419382]
[1749295420012,0.03648572,105370.0,105360.0,2.42858159]
[1749295420214,0.03648572,105370.0,105360.0,2.33419382]
[1749295420425,0.03648572,105370.0,105360.0,2.42858159]
[1749295427511,0.02148572,105370.0,105360.0,2.97354202]
[1749295427686,0.02148572,105370.0,105360.0,1.89972116]
[1749295427877,0.00618572,105370.0,105360.0,3.03964202]
[1749295428563,0.02178572,105370.0,105360.0,3.03964202]
[1749295429550,0.02178572,105370.0,105360.0,2.94525425]
[1749295429754,0.02178572,105370.0,105360.0,3.03966327]
[1749295431275,0.02178572,105370.0,105360.0,3.03962237]
[1749295431928,0.00618572,105370.0,105360.0,3.03962237]
[1749295432586,0.02268572,105370.0,105360.0,1.94974241]
[1749295432797,0.02268572,105370.0,105360.0,3.03962237]
[1749295433220,0.02268572,105370.0,105360.0,3.02352237]
[1749295437512,0.03768572,105370.0,105360.0,2.59568237]
[1749295437711,0.03768572,105370.0,105360.0,2.97840237]
[1749295438523,0.03768572,105370.0,105360.0,2.59568237]
[1749295438748,0.03768572,105370.0,105360.0,2.97836237]
[1749295442008,0.03768572,105370.0,105360.0,2.97836237]
[1749295443340,0.03768572,105370.0,105360.0,1.88848241]
[1749295443551,0.03768572,105370.0,105360.0,2.97836237]
[1749295447860,0.03768572,105370.0,105360.0,2.59568237]
[1749295448065,0.03768572,105370.0,105360.0,2.98020237]
[1749295450596,0.03768572,105370.0,105360.0,1.50580241]
[1749295450798,0.03768572,105370.0,105360.0,1.57790337]
[1749295451031,0.5826257,105370.0,105360.0,1.51684252]
[1749295451156,0.03768572,105370.0,105360.0,1.79583339]
[1749295451384,0.5826257,105370.0,105360.0,1.05685254]
[1749295451596,0.5826257,105370.0,105360.0,1.41277754]
[1749295451811,0.59211525,105370.0,105360.0,1.41277754]
[1749295452017,0.5826257,105370.0,105360.0,1.41277754]
[1749295452237,0.59211525,105370.0,105360.0,1.41277754]
[1749295452449,0.59211525,105370.0,105360.0,1.02833754]
[1749295452450,0.60160498,105370.0,105360.0,1.02833754]
[1749295452714,0.61109489,105370.0,105360.0,1.41277754]
[1749295453341,0.61148857,105370.0,105360.0,1.41277754]
[1749295453498,0.60199866,105370.0,105360.0,1.41277754]
[1749295454856,0.61148857,105370.0,105360.0,1.41277754]
[1749295455054,0.60199866,105370.0,105360.0,1.41277754]
[1749295455601,0.61148848,105370.0,105360.0,1.41277754]
[1749295456040,0.06615482,105370.0,105360.0,1.41277754]
[1749295456970,0.07564482,105370.0,105360.0,1.41277754]
[1749295457182,0.06615482,105370.0,105360.0,1.41277754]
[1749295458351,0.056665,105370.0,105360.0,1.41277754]
[1749295458591,0.06615482,105370.0,105360.0,1.41277754]
[1749295458827,0.056665,105370.0,105360.0,1.41277754]
[1749295459353,0.056665,105370.0,105360.0,1.41237754]
[1749295459794,0.056665,105370.0,105360.0,1.41233754]
[1749295462013,0.04717527,105370.0,105360.0,1.41233754]
[1749295462624,0.056665,105370.0,105360.0,1.41233754]
[1749295463166,0.04717527,105370.0,105360.0,1.41233754]
[1749295463379,0.056665,105370.0,105360.0,1.41233754]
[1749295463788,0.04717527,105370.0,105360.0,1.41233754]
[1749295464403,0.03768572,105370.0,105360.0,1.41233754]
[1749295468311,0.03768572,105370.0,105360.0,1.41181754]
[1749295469693,0.04717536,105370.0,105360.0,1.41181754]
[1749295473259,0.59249371,105370.0,105360.0,1.41181754]
[1749295475917,0.59249371,105370.0,105360.0,1.13829754]
[1749295476734,0.02268572,105370.0,105360.0,1.68361589]
[1749295478528,0.02268572,105370.0,105360.0,1.13829754]
[1749295481557,0.02268572,105370.0,105360.0,1.68361589]
[1749295481810,0.00618572,105370.0,105360.0,1.69991589]
[1749295482034,0.00618572,105370.0,105360.0,1.23014752]
[1749295482249,0.02258572,105370.0,105360.0,1.77546587]
[1749295482467,0.02258572,105370.0,105360.0,1.75916587]
[1749295482900,0.02258572,105370.0,105360.0,1.77370672]
[1749295483098,0.02258572,105370.0,105360.0,1.78950672]
[1749295484181,0.02258572,105370.0,105360.0,1.24418837]
[1749295484387,0.02258572,105370.0,105360.0,1.78950672]
[1749295486474,0.00618572,105370.0,105360.0,1.52503839]
[1749295486685,0.00618572,105370.0,105360.0,2.73860011]
[1749295487353,0.00618572,105370.0,105360.0,2.64419109]
[1749295487775,0.00618572,105370.0,105360.0,2.71965093]
[1749295488192,0.00618572,105370.0,105360.0,2.70325093]
[1749295488331,0.02258572,105370.0,105360.0,2.70325093]
[1749295488749,0.02258572,105370.0,105360.0,2.15793258]
[1749295491163,0.02258572,105370.0,105360.0,1.21333423]
[1749295491367,0.02258572,105370.0,105360.0,2.15069258]
[1749295494505,0.02258572,105370.0,105360.0,1.68319274]
[1749295494731,0.02258572,105370.0,105360.0,2.07495274]
[1749295496250,0.02258572,105370.0,105360.0,2.09035274]
[1749295498852,0.02258572,105370.0,105360.0,2.63567109]
[1749295499228,0.02258572,105370.0,105360.0,2.89375109]
[1749295499838,0.02258572,105370.0,105360.0,2.34843274]
[1749295500545,0.02258572,105370.0,105360.0,1.95667274]
[1749295500683,0.02258572,105370.0,105360.0,2.34783274]
[1749295502025,0.02258572,105370.0,105360.0,2.42331327]
[1749295503164,0.02258572,105370.0,105360.0,2.03215327]
[1749295503356,0.02258572,105370.0,105360.0,2.42331327]
[1749295505923,0.02258572,105370.0,105360.0,2.42303327]
[1749295511960,0.02258572,105370.0,105360.0,2.43943327]
[1749295512574,0.00618572,105370.0,105360.0,2.43943327]
[1749295513211,0.02218572,105370.0,105360.0,2.42303327]
[1749295513432,0.02134572,105370.0,105360.0,2.42303327]
[1749295513873,0.02134572,105370.0,105360.0,2.43843327]
[1749295514924,0.02134572,105370.0,105360.0,2.42303327]
[1749295515350,0.02134572,105370.0,105360.0,2.34755274]
[1749295526376,0.02134572,105370.0,105360.0,1.80223439]
[1749295526577,0.02134572,105370.0,105360.0,2.34755274]
[1749295527780,0.02134572,105370.0,105360.0,1.80223439]
[1749295528019,0.02134572,105370.0,105360.0,2.34755274]
[1749295529967,0.02134572,105370.0,105360.0,1.80223439]
[1749295530172,0.02134572,105370.0,105360.0,2.34755274]
[1749295534123,0.02134572,105370.0,105360.0,2.34755274]
[1749295534505,0.02134572,105370.0,105360.0,2.04999274]
[1749295534662,0.02134572,105370.0,105360.0,2.34543274]
[1749295540530,0.03634572,105370.0,105360.0,1.95667274]
[1749295540743,0.03634572,105370.0,105360.0,2.34423274]
[1749295541842,0.02134572,105370.0,105360.0,2.34423274]
[1749295554588,0.02134572,105370.0,105360.0,2.34199274]
[1749295555221,0.02134572,105370.0,105360.0,1.41135439]
[1749295555447,0.02134572,105370.0,105360.0,2.34195274]
[1749295556554,0.016,105370.0,105360.0,2.34195274]
[1749295557352,0.0321,105370.0,105360.0,1.41135439]
[1749295557583,0.0321,105370.0,105360.0,1.36829754]
[1749295557760,0.57741835,105370.0,105360.0,1.75337754]
[1749295558193,0.5963979,105370.0,105360.0,1.02829754]
[1749295558397,0.58690799,105370.0,105360.0,1.41369754]
[1749295558616,0.59639781,105370.0,105360.0,1.41369754]
[1749295558958,0.57741835,105370.0,105360.0,1.41369754]
[1749295560293,0.0321,105370.0,105360.0,1.41369754]
[1749295560495,0.57741835,105370.0,105360.0,1.41369754]
[1749295560893,0.0321,105370.0,105360.0,1.41369754]
[1749295562050,0.57741835,105370.0,105360.0,1.41369754]
[1749295563747,0.5869079,105370.0,105360.0,1.41369754]
[1749295564156,0.59639763,105370.0,105360.0,1.41369754]
[1749295568060,0.59639763,105370.0,105360.0,1.14021754]
[1749295568269,0.60588745,105370.0,105360.0,1.14021754]
[1749295568969,0.59639763,105370.0,105360.0,1.14021754]
[1749295569181,0.59639772,105370.0,105360.0,1.14021754]
[1749295569380,0.05107928,105370.0,105360.0,1.14021754]
[1749295569563,0.05107937,105370.0,105360.0,1.14021754]
[1749295569943,0.05107937,105370.0,105360.0,0.75481754]
[1749295570158,0.06056937,105370.0,105360.0,1.13989754]
[1749295570381,0.07005955,105370.0,105360.0,1.13989754]
[1749295570794,0.6153779,105370.0,105360.0,1.13989754]
[1749295570954,0.62486817,105370.0,105360.0,1.13985754]
[1749295572509,0.6153779,105370.0,105360.0,1.13985754]
[1749295572737,0.62486817,105370.0,105360.0,1.13985754]
[1749295573296,0.62486898,105370.0,105360.0,1.13985754]
[1749295573479,0.81467632,105370.0,105360.0,0.75481772]
[1749295573672,0.61537862,105370.0,105360.0,1.14946835]
[1749295573876,0.60588835,105370.0,105360.0,1.14946835]
[1749295574101,0.59639781,105370.0,105360.0,1.14946835]
[1749295574300,0.61537754,105370.0,105360.0,1.14946835]
[1749295574724,0.60588745,105370.0,105360.0,1.14946835]
[1749295575014,0.06056892,105370.0,105360.0,1.14946835]
[1749295575198,0.07005892,105370.0,105360.0,1.14946835]
[1749295576749,0.0795491,105370.0,105360.0,1.14946835]
[1749295577361,0.26935644,105370.0,105360.0,1.13997772]
[1749295577558,0.6153779,105370.0,105360.0,1.14918835]
[1749295577862,0.61537781,105370.0,105360.0,1.14918835]
[1749295578070,0.6153779,105370.0,105360.0,1.14918835]
[1749295578409,0.05107937,105370.0,105360.0,1.14918835]
[1749295578614,0.59639772,105370.0,105360.0,1.14918835]
[1749295578840,0.61537781,105370.0,105360.0,1.14918835]
[1749295579384,0.60588763,105370.0,105360.0,1.14918835]
[1749295579894,0.60396763,105370.0,105360.0,1.14918835]
[1749295582696,0.59447772,105370.0,105360.0,1.14918835]
[1749295582896,0.60396763,105370.0,105360.0,1.14918835]
[1749295583104,0.60396763,105370.0,105360.0,1.14830835]
[1749295584843,0.61345772,105370.0,105360.0,1.14830835]
[1749295585556,0.81275524,105370.0,105360.0,1.13861772]
[1749295585756,0.60396808,105370.0,105360.0,1.15759907]
[1749295585901,0.61345826,105370.0,105360.0,1.15759907]
[1749295586098,0.60396808,105370.0,105360.0,1.15759907]
[1749295586326,0.59447799,105370.0,105360.0,1.15759907]
[1749295586822,0.58498808,105370.0,105360.0,1.15759907]
[1749295587867,0.59447799,105370.0,105360.0,1.15759907]
[1749295588675,0.60396817,105370.0,105360.0,1.15759907]
[1749295589583,0.57549835,105370.0,105360.0,1.15759907]
[1749295589892,0.60396772,105370.0,105360.0,1.15759907]
[1749295590185,0.6134579,105370.0,105360.0,1.15759907]
[1749295590390,0.60396772,105370.0,105360.0,1.15759907]
[1749295590794,0.6134579,105370.0,105360.0,1.15759907]
[1749295591000,0.05864937,105370.0,105360.0,1.15759907]
[1749295591331,0.60396772,105370.0,105360.0,1.15759907]
[1749295591961,0.05864928,105370.0,105360.0,1.15759907]
[1749295592382,0.04915928,105370.0,105360.0,1.15759907]
[1749295592583,0.60396754,105370.0,105360.0,1.15759907]
[1749295592785,0.06813928,105370.0,105360.0,1.15759907]
[1749295593012,0.05864919,105370.0,105360.0,1.15759907]
[1749295595170,0.06813919,105370.0,105360.0,1.15759907]
[1749295595381,0.05864919,105370.0,105360.0,1.15759907]
[1749295596872,0.06813928,105370.0,105360.0,1.15759907]
[1749295597081,0.05864919,105370.0,105360.0,1.15759907]
[1749295597902,0.06813919,105370.0,105360.0,1.15759907]
[1749295598109,0.06813919,105370.0,105360.0,0.96759907]
[1749295598341,0.05864919,105370.0,105360.0,0.96759907]
[1749295599060,0.04915928,105370.0,105360.0,0.96759907]
[1749295599311,0.0681391,105370.0,105360.0,0.96759907]
[1749295599814,0.07762919,105370.0,105360.0,0.96759907]
[1749295600466,0.07762991,105370.0,105360.0,0.96759907]
[1749295600707,0.06813964,105370.0,105360.0,0.96759907]
[1749295600934,0.61345799,105370.0,105360.0,0.96759907]
[1749295602028,0.62294808,105370.0,105360.0,0.96759907]
[1749295602231,0.6134579,105370.0,105360.0,0.96759907]
[1749295602544,0.60396781,105370.0,105360.0,0.96759907]
[1749295602744,0.6134579,105370.0,105360.0,0.96759907]
[1749295602954,0.06813955,105370.0,105360.0,0.96759907]
[1749295603491,0.05864946,105370.0,105360.0,0.96759907]
[1749295603835,0.06813955,105370.0,105360.0,0.96759907]
[1749295603962,0.05864946,105370.0,105360.0,0.96759907]
[1749295604177,0.03018,105370.0,105360.0,0.96759907]
[1749295604386,0.05864955,105370.0,105360.0,1.02439628]
[1749295604590,0.05864937,105370.0,105360.0,1.02439628]
[1749295604793,0.06813937,105370.0,105360.0,1.02439628]
[1749295605246,0.05864937,105370.0,105360.0,1.02439628]
[1749295605449,0.04254937,105370.0,105360.0,1.02439628]
[1749295606166,0.05203946,105370.0,105360.0,0.96759907]
[1749295606306,0.05203937,105370.0,105360.0,0.96759907]
[1749295606491,0.04254937,105370.0,105360.0,0.96759907]
[1749295606694,0.05754937,105370.0,105360.0,0.96759907]
[1749295607130,0.05754937,105370.0,105360.0,1.02439693]
[1749295607331,0.05754937,105370.0,105360.0,0.96759907]
[1749295608227,0.05754937,105370.0,105360.0,1.02439258]
[1749295608620,0.06703946,105370.0,105360.0,1.02439258]
[1749295611345,0.05754937,105370.0,105360.0,1.02439258]
[1749295611545,0.06703946,105370.0,105360.0,1.02439258]
[1749295612418,0.05754937,105370.0,105360.0,1.02439258]
[1749295612624,0.06703937,105370.0,105360.0,1.02439258]
[1749295612837,0.07535587,105370.0,105360.0,1.02439258]
[1749295613053,0.08484587,105370.0,105360.0,1.02439258]
[1749295613500,0.06703937,105370.0,105360.0,1.02439258]
[1749295613717,0.06703937,105370.0,105360.0,0.77827258]
[1749295613938,0.09433605,105370.0,105360.0,0.77827258]
[1749295614151,0.09433596,105370.0,105360.0,0.77827258]
[1749295614634,0.08484587,105370.0,105360.0,0.77827258]
[1749295614850,0.07535604,105370.0,105360.0,0.77827258]
[1749295615055,0.08484613,105370.0,105360.0,0.77827258]
[1749295615266,0.07652964,105370.0,105360.0,0.72147907]
[1749295615514,0.09433631,105370.0,105360.0,0.72147907]
[1749295616225,0.07652964,105370.0,105360.0,0.72147907]
[1749295616406,0.09433632,105370.0,105360.0,0.72147907]
[1749295616599,0.08484614,105370.0,105360.0,0.72147907]
[1749295617008,0.09433632,105370.0,105360.0,0.72147907]
[1749295618168,0.07535605,105370.0,105360.0,0.72147907]
[1749295618283,0.06984605,105370.0,105360.0,0.72147907]
[1749295618485,0.06035605,105370.0,105360.0,0.72147907]
[1749295618694,0.02356964,105370.0,105360.0,0.72147907]
[1749295618898,0.05086624,105370.0,105360.0,0.72147907]
[1749295619139,0.06984615,105370.0,105360.0,0.72147907]
[1749295619338,0.06984615,105370.0,105360.0,0.77828141]
[1749295619547,0.06035615,105370.0,105360.0,0.77828141]
[1749295620199,0.06035616,105370.0,105360.0,0.77828141]
[1749295620514,0.05086625,105370.0,105360.0,0.77828141]
[1749295620735,0.01780688,105370.0,105360.0,1.32359976]
[1749295620938,0.5390718,105380.0,105370.0,0.21827734]
[1749295621138,0.54738865,105380.0,105370.0,0.37146734]
[1749295621476,0.55687748,105380.0,105370.0,0.31467682]
[1749295621638,0.5663664,105380.0,105370.0,0.31467682]
[1749295622071,0.56636631,105380.0,105370.0,0.31567682]
[1749295622306,0.57585541,105380.0,105370.0,0.31567682]
[1749295622510,0.57585543,105380.0,105370.0,0.31567682]
[1749295622714,0.55804973,105380.0,105370.0,0.31567682]
[1749295622853,0.57585543,105380.0,105370.0,0.31567682]
[1749295623057,0.58534462,105380.0,105370.0,0.31567682]
[1749295623257,0.56753892,105380.0,105370.0,0.31567682]
[1749295623892,0.56753955,105380.0,105370.0,0.31567682]
[1749295624301,0.58533311,105380.0,105370.0,0.56187682]
[1749295625129,0.58533257,105380.0,105370.0,0.56187682]
[1749295625575,0.56753955,105380.0,105370.0,0.56187682]
[1749295625771,0.58533257,105380.0,105370.0,0.56187682]
[1749295625986,0.56753955,105380.0,105370.0,0.56187682]
[1749295626217,0.58533257,105380.0,105370.0,0.56187682]
[1749295626613,0.57584329,105380.0,105370.0,0.56187682]
[1749295627947,0.53907225,105380.0,105370.0,0.56187682]
[1749295628102,0.52009432,105380.0,105370.0,0.56187682]
[1749295628316,0.53907189,105380.0,105370.0,0.56187682]
[1749295628978,0.54856099,105380.0,105370.0,0.56187682]
[1749295629330,0.5485609,105380.0,105370.0,0.56187682]
[1749295629956,0.53907189,105380.0,105370.0,0.56187682]
[1749295630383,0.54856099,105380.0,105370.0,0.56187682]
[1749295633575,0.55805018,105380.0,105370.0,0.56187682]
[1749295633958,0.55805018,105380.0,105370.0,0.57124071]
[1749295634710,0.56753946,105380.0,105370.0,0.57124071]
[1749295635485,0.58532409,105380.0,105370.0,0.57124071]
[1749295635620,0.58532481,105380.0,105370.0,0.94243682]
[1749295635818,1.11285853,105380.0,105370.0,0.94243682]
[1749295636020,1.13064327,105380.0,105370.0,0.94243682]
[1749295636486,0.58532492,105380.0,105370.0,0.94243682]
[1749295636697,1.13064327,105380.0,105370.0,0.94243682]
[1749295636908,1.09387925,105380.0,105370.0,0.94243682]
[1749295637142,1.10336853,105380.0,105370.0,0.94243682]
[1749295637910,0.56634462,105380.0,105370.0,0.94243682]
[1749295638143,1.12115299,105380.0,105370.0,0.94243682]
[1749295638408,1.12115363,105380.0,105370.0,0.94243682]
[1749295639056,1.10336853,105380.0,105370.0,0.94243682]
[1749295639481,1.12115353,105380.0,105370.0,0.94243682]
[1749295639906,1.10336853,105380.0,105370.0,0.94243682]
[1749295640135,1.1306429,105380.0,105370.0,0.56187682]
[1749295640311,1.1306429,105380.0,105370.0,0.94223682]
[1749295640520,1.13064362,105380.0,105370.0,0.94223682]
[1749295641522,1.1128579,105380.0,105370.0,0.94223682]
[1749295641729,1.13064374,105380.0,105370.0,0.94223682]
[1749295642378,1.13064498,105380.0,105370.0,0.94223682]
[1749295642808,1.1128579,105380.0,105370.0,0.94223682]
[1749295643016,1.13064498,105380.0,105370.0,0.94223682]
[1749295644356,1.13064586,105380.0,105370.0,0.94223682]
[1749295645112,1.1128579,105380.0,105370.0,0.94223682]
[1749295645295,1.13064586,105380.0,105370.0,0.94223682]
[1749295646117,1.13064833,105380.0,105370.0,0.94223682]
[1749295646735,1.1128579,105380.0,105370.0,0.94223682]
[1749295646941,1.13064833,105380.0,105370.0,0.94223682]
[1749295647358,1.13008833,105380.0,105370.0,0.94223682]
[1749295647765,1.1122979,105380.0,105370.0,0.94223682]
[1749295647971,1.13008909,105380.0,105370.0,0.94223682]
[1749295648119,1.1122979,105380.0,105370.0,0.94223682]
[1749295648334,1.13009193,105380.0,105370.0,0.94223682]
[1749295648533,1.13009274,105380.0,105370.0,0.94223682]
[1749295649723,1.11229871,105380.0,105370.0,0.94223682]
[1749295650138,1.13009914,105380.0,105370.0,0.94223682]
[1749295651732,1.11229871,105380.0,105370.0,0.94223682]
[1749295651895,1.13009923,105380.0,105370.0,0.94223682]
[1749295652997,1.31039973,105380.0,105370.0,0.93274709]
[1749295653198,1.31671087,105380.0,105370.0,0.64142709]
[1749295653478,1.31671087,105380.0,105370.0,0.940957]
[1749295653695,1.29891011,105380.0,105370.0,0.940957]
[1749295654148,1.31671089,105380.0,105370.0,0.940957]
[1749295654552,1.29891011,105380.0,105370.0,0.940957]
[1749295654763,1.31671089,105380.0,105370.0,0.940957]
[1749295654975,1.29891011,105380.0,105370.0,0.940957]
[1749295655233,1.31671066,105380.0,105370.0,0.940957]
[1749295655454,1.30722138,105380.0,105370.0,0.93146727]
[1749295655661,1.30722191,105380.0,105370.0,0.93142727]
[1749295655868,1.28942083,105380.0,105370.0,0.94091727]
[1749295656071,1.30722203,105380.0,105370.0,0.94091727]
[1749295656241,1.30722203,105380.0,105370.0,0.95040718]
[1749295656468,1.30722203,105380.0,105370.0,0.34359948]
[1749295656655,1.85254038,105380.0,105370.0,0.72267948]
[1749295656855,1.28942083,105380.0,105370.0,0.92197718]
[1749295657087,1.3072226,105380.0,105370.0,0.93146745]
[1749295657313,1.3072226,105380.0,105370.0,0.94095763]
[1749295657521,1.29773323,105380.0,105370.0,0.94095763]
[1749295657756,1.29772865,105380.0,105370.0,0.94095763]
[1749295658738,1.27993146,105380.0,105370.0,0.95044772]
[1749295659164,1.29772865,105380.0,105370.0,0.95044772]
[1749295659355,1.27993146,105380.0,105370.0,0.95044772]
[1749295659804,1.29772884,105380.0,105370.0,0.95044772]
[1749295660188,1.29772659,105380.0,105370.0,0.95044772]
[1749295660620,1.27993146,105380.0,105370.0,0.95044772]
[1749295660825,1.29772659,105380.0,105370.0,0.95044772]
[1749295661389,1.27993146,105380.0,105370.0,0.95044772]
[1749295661615,1.29772659,105380.0,105370.0,0.95044772]
[1749295662029,1.29772659,105380.0,105370.0,0.72267948]
[1749295662275,1.29772659,105380.0,105370.0,0.921977]
[1749295662895,1.29772659,105380.0,105370.0,0.91248682]
[1749295663121,1.84304494,105380.0,105370.0,0.34359948]
[1749295663320,1.82524981,105380.0,105370.0,0.43263948]
[1749295663476,1.84304414,105380.0,105370.0,0.72259948]
[1749295664094,1.84304439,105380.0,105370.0,0.72259948]
[1749295664278,1.82524981,105380.0,105370.0,0.72259948]
[1749295664483,1.84304479,105380.0,105370.0,0.92189709]
[1749295664686,1.84304476,105380.0,105370.0,0.92189709]
[1749295664890,1.84304476,105380.0,105370.0,0.72259948]
[1749295665542,1.82524981,105380.0,105370.0,0.72259948]
[1749295665966,1.82524981,105380.0,105370.0,0.921897]
[1749295666392,1.8430419,105380.0,105370.0,0.921897]
[1749295667041,1.8430419,105380.0,105370.0,0.72259948]
[1749295667255,1.8430419,105380.0,105370.0,0.34359948]
[1749295667461,1.8430419,105380.0,105370.0,0.72251948]
[1749295667679,1.84304001,105380.0,105370.0,0.72251948]
[1749295668180,1.82524981,105380.0,105370.0,0.72251948]
[1749295668393,1.84303969,105380.0,105370.0,0.72251948]
[1749295668825,1.8430385,105380.0,105370.0,0.72251948]
[1749295669500,1.84303849,105380.0,105370.0,0.72251948]
[1749295670155,1.82524981,105380.0,105370.0,0.92181718]
[1749295670367,1.83354888,105380.0,105370.0,0.92181718]
[1749295670826,1.83354888,105380.0,105370.0,0.72251948]
[1749295671038,1.83354887,105380.0,105370.0,0.72251948]
[1749295671255,1.81576035,105380.0,105370.0,0.72251948]
[1749295671577,1.83354887,105380.0,105370.0,0.72251948]
[1749295671787,1.83354888,105380.0,105370.0,0.72251948]
[1749295672684,1.83354888,105380.0,105370.0,0.73200984]
[1749295673008,1.83354839,105380.0,105370.0,0.73200984]
[1749295673385,1.81576035,105380.0,105370.0,0.73200984]
[1749295673612,1.83354839,105380.0,105370.0,0.73200984]
[1749295674595,1.81576035,105380.0,105370.0,0.74150002]
[1749295674825,1.83354809,105380.0,105370.0,0.93130736]
[1749295675034,1.81576035,105380.0,105370.0,0.93130736]
[1749295675210,1.8335481,105380.0,105370.0,0.93130745]
[1749295675438,1.81576035,105380.0,105370.0,0.93130745]
[1749295675611,1.83354863,105380.0,105370.0,0.93130745]
[1749295675832,1.83354864,105380.0,105370.0,0.93130745]
[1749295676112,1.81576035,105380.0,105370.0,0.93130745]
[1749295676348,1.83354852,105380.0,105370.0,0.93130745]
[1749295676735,1.81576035,105380.0,105370.0,0.93130745]
[1749295677082,1.83354854,105380.0,105370.0,0.94079763]
[1749295677482,1.83354943,105380.0,105370.0,0.94079763]
[1749295678050,1.82524981,105380.0,105370.0,0.921817]
[1749295678311,1.82524981,105380.0,105370.0,0.92181709]
[1749295678527,1.84303914,105380.0,105370.0,0.92181709]
[1749295678696,1.82524981,105380.0,105370.0,0.92181709]
[1749295678903,1.8430391,105380.0,105370.0,0.92181709]
[1749295679544,1.84304057,105380.0,105370.0,0.92181709]
[1749295679734,1.84304051,105380.0,105370.0,0.92181718]
[1749295679948,1.82524981,105380.0,105370.0,0.93130745]
[1749295680746,1.84304052,105380.0,105370.0,0.93130745]
[1749295680947,1.82524981,105380.0,105370.0,0.93130745]
[1749295681144,1.82524981,105380.0,105370.0,0.91232682]
[1749295681545,1.84304377,105380.0,105370.0,0.92181718]
[1749295681747,1.84304372,105380.0,105370.0,0.92181718]
[1749295682225,1.82524981,105380.0,105370.0,0.92181718]
[1749295682370,1.84304373,105380.0,105370.0,0.92181718]
[1749295682567,1.84304371,105380.0,105370.0,0.92181718]
[1749295682753,1.84304376,105380.0,105370.0,0.93130745]
[1749295682962,1.84304366,105380.0,105370.0,0.93130745]
[1749295683213,1.84304366,105380.0,105370.0,0.91232682]
[1749295683383,1.84304368,105380.0,105370.0,0.92181709]
[1749295683770,1.82524981,105380.0,105370.0,0.92181709]
[1749295684209,1.84304363,105380.0,105370.0,0.92181709]
[1749295684424,1.84304364,105380.0,105370.0,0.92181709]
[1749295684862,1.84304862,105380.0,105370.0,0.92181709]
[1749295685080,1.82524981,105380.0,105370.0,0.92181709]
[1749295685303,0.73461311,105380.0,105370.0,0.92181709]
[1749295685523,1.84304851,105380.0,105370.0,0.92181709]
[1749295685723,1.84304843,105380.0,105370.0,0.92181709]
[1749295686023,1.84304836,105380.0,105370.0,0.92181709]
[1749295686235,1.82524981,105380.0,105370.0,0.92181709]
[1749295686868,1.84304909,105380.0,105370.0,0.92181718]
[1749295687130,1.82524981,105380.0,105370.0,0.94079763]
[1749295687784,1.84304976,105380.0,105370.0,0.94079763]
[1749295688542,1.82524981,105380.0,105370.0,0.94079763]
[1749295688771,1.82524981,105380.0,105370.0,0.31567763]
[1749295688991,1.8430498,105380.0,105370.0,0.31567763]
[1749295689206,1.84304983,105380.0,105370.0,0.66588682]
[1749295689387,1.84304983,105380.0,105370.0,0.67537709]
[1749295689852,1.84305135,105380.0,105370.0,0.67537709]
[1749295690288,1.84305135,105380.0,105370.0,0.67537718]
[1749295690484,1.84305137,105380.0,105370.0,0.67537718]
[1749295690707,1.84305131,105380.0,105370.0,0.68486745]
[1749295690930,1.84305127,105380.0,105370.0,0.68486745]
[1749295691146,1.82524981,105380.0,105370.0,0.68486745]
[1749295691590,1.84305134,105380.0,105370.0,0.68486745]
[1749295691809,1.84305133,105380.0,105370.0,0.68486745]
[1749295692031,1.84305132,105380.0,105370.0,0.68486745]
[1749295692253,1.84305134,105380.0,105370.0,0.68486745]
[1749295692933,1.84305141,105380.0,105370.0,0.68486745]
[1749295693178,1.84305556,105380.0,105370.0,0.66588682]
[1749295693416,1.84305556,105380.0,105370.0,0.68486745]
[1749295693629,1.82524981,105380.0,105370.0,0.68486745]
[1749295693846,1.84305553,105380.0,105370.0,0.68486745]
[1749295694068,1.84305553,105380.0,105370.0,0.69435763]
[1749295694292,1.84305553,105380.0,105370.0,0.70384772]
[1749295694512,1.84305551,105380.0,105370.0,0.69435763]
[1749295694857,1.84305545,105380.0,105370.0,0.69435763]
[1749295695298,1.82524981,105380.0,105370.0,0.67537718]
[1749295695520,1.84305527,105380.0,105370.0,0.69435763]
[1749295695738,1.84305505,105380.0,105370.0,0.69435763]
[1749295695931,1.84305504,105380.0,105370.0,0.69435763]
[1749295696076,1.82524981,105380.0,105370.0,0.69435763]
[1749295696307,1.84305535,105380.0,105370.0,0.69435763]
[1749295696828,1.84305496,105380.0,105370.0,0.69435763]
[1749295697003,1.82524981,105380.0,105370.0,0.69435763]
[1749295697216,1.84305536,105380.0,105370.0,0.69435763]
[1749295697556,1.84305535,105380.0,105370.0,0.68486745]
[1749295697765,1.84305524,105380.0,105370.0,0.68486745]
[1749295697978,1.82524981,105380.0,105370.0,0.68486745]
[1749295698184,1.84305534,105380.0,105370.0,0.68486745]
[1749295698435,1.84305531,105380.0,105370.0,0.69435763]
[1749295698647,1.82524981,105380.0,105370.0,0.69435763]
[1749295698869,1.85254443,105380.0,105370.0,0.69435763]
[1749295699108,1.85254442,105380.0,105370.0,0.69435763]
[1749295699317,1.85254442,105380.0,105370.0,0.68486745]
[1749295699520,1.834739,105380.0,105370.0,0.68486745]
[1749295699753,1.84305523,105380.0,105370.0,0.68486745]
[1749295700030,1.84305523,105380.0,105370.0,0.675377]
[1749295701082,1.84305524,105380.0,105370.0,0.675377]
[1749295701436,1.82524981,105380.0,105370.0,0.675377]
[1749295701646,1.84305523,105380.0,105370.0,0.675377]
[1749295702260,1.84305551,105380.0,105370.0,0.675377]
[1749295702630,1.84305548,105380.0,105370.0,0.675377]
[1749295702834,1.8430555,105380.0,105370.0,0.675377]
[1749295703059,1.84305553,105380.0,105370.0,0.675377]
[1749295703483,1.84305553,105380.0,105370.0,0.66588682]
[1749295703639,1.84305553,105380.0,105370.0,0.67537718]
[1749295703838,1.84305553,105380.0,105370.0,0.68486745]
[1749295704039,1.84305559,105380.0,105370.0,0.69435763]
[1749295704241,1.84305554,105380.0,105370.0,0.69435763]
[1749295704608,1.84305574,105380.0,105370.0,0.68486745]
[1749295704827,1.82524981,105380.0,105370.0,0.69435763]
[1749295705032,1.84305576,105380.0,105370.0,0.69435763]
[1749295705206,1.84305575,105380.0,105370.0,0.69435763]
[1749295705807,1.84305585,105380.0,105370.0,0.67537718]
[1749295706061,1.8430558,105380.0,105370.0,0.68486736]
[1749295706263,1.82524981,105380.0,105370.0,0.68486736]
[1749295706463,1.84305582,105380.0,105370.0,0.68486736]
[1749295707484,1.84305584,105380.0,105370.0,0.68486736]
[1749295707632,1.82524981,105380.0,105370.0,0.68486736]
[1749295707898,1.84305583,105380.0,105370.0,0.67537718]
[1749295708192,1.84305587,105380.0,105370.0,0.69435763]
[1749295708511,1.84305585,105380.0,105370.0,0.675377]
[1749295708692,1.84305585,105380.0,105370.0,0.68486709]
[1749295708868,1.84305585,105380.0,105370.0,0.675377]
[1749295709268,1.82524981,105380.0,105370.0,0.675377]
[1749295709889,1.84305582,105380.0,105370.0,0.675377]
[1749295710296,1.82524981,105380.0,105370.0,0.675377]
[1749295710496,1.8430558,105380.0,105370.0,0.675377]